bitfinex/quotes_BTCUSD_20250208
["timestamp","ask_amount","ask_price","bid_price","bid_amount"]
[1739048341021,0.01663534,96587.0,96582.0,0.0148414]
[1739048341628,0.01763534,96587.0,96582.0,0.0148414]
[1739048342003,0.01763534,96587.0,96583.0,0.0829]
[1739048342206,0.01863534,96587.0,96584.0,0.01483921]
[1739048342555,0.01563534,96587.0,96584.0,0.01483921]
[1739048343675,0.01863534,96587.0,96584.0,0.01483921]
[1739048344084,0.01663534,96587.0,96584.0,0.01483921]
[1739048345011,0.00322408,96587.0,96585.0,0.0475]
[1739048345203,0.00322408,96587.0,96586.0,0.123]
[1739048345453,0.00422408,96587.0,96586.0,0.13783702]
[1739048345658,0.00022408,96587.0,96586.0,0.29313902]
[1739048345896,0.00222408,96587.0,96586.0,0.13783702]
[1739048346099,0.00322408,96587.0,96586.0,0.15162072]
[1739048346376,0.00122408,96587.0,96586.0,0.13783702]
[1739048346578,0.00222408,96587.0,96586.0,0.13783702]
[1739048346734,0.00422408,96587.0,96586.0,0.13783702]
[1739048361620,0.00422408,96587.0,96586.0,0.01483702]
[1739048361856,0.00422408,96587.0,96581.0,0.0807]
[1739048362111,0.15952408,96587.0,96586.0,0.01483702]
[1739048362354,0.15,96586.0,96577.0,0.0472]
[1739048362611,0.15531,96581.0,96577.0,0.0472]
[1739048362863,0.207075,96584.0,96577.0,0.0472]
[1739048363099,0.155308,96582.0,96577.0,0.0472]
[1739048363455,0.155306,96584.0,96577.0,0.0472]
[1739048363663,0.155306,96584.0,96577.0,0.0482]
[1739048364016,0.155307,96583.0,96577.0,0.0482]
[1739048364929,0.155307,96583.0,96577.0,0.0472]
[1739048365312,0.15,96584.0,96577.0,0.0482]
[1739048365536,0.305305,96584.0,96577.0,0.0482]
[1739048365913,0.305305,96584.0,96577.0,0.0492]
[1739048366092,0.305305,96584.0,96577.0,0.0482]
[1739048366297,0.306305,96584.0,96577.0,0.0482]
[1739048366508,0.155306,96583.0,96577.0,0.0482]
[1739048367448,0.001,96583.0,96577.0,0.0482]
[1739048367691,0.156307,96583.0,96577.0,0.0482]
[1739048367859,0.156307,96583.0,96577.0,0.0472]
[1739048368068,0.001,96583.0,96577.0,0.0472]
[1739048368496,0.001,96583.0,96578.0,0.01484577]
[1739048368725,0.001,96583.0,96577.0,0.0472]
[1739048369875,0.15,96585.0,96577.0,0.0472]
[1739048370076,0.305303,96585.0,96577.0,0.0472]
[1739048370327,0.001,96583.0,96578.0,0.01484577]
[1739048370521,0.001,96583.0,96577.0,0.0472]
[1739048370740,0.305303,96585.0,96577.0,0.0472]
[1739048371067,0.307303,96585.0,96577.0,0.0472]
[1739048371448,0.306303,96585.0,96577.0,0.0472]
[1739048371863,0.001,96583.0,96577.0,0.0472]
[1739048373032,0.306303,96585.0,96577.0,0.0472]
[1739048373447,0.308303,96585.0,96577.0,0.0472]
[1739048374198,0.307303,96585.0,96577.0,0.0472]
[1739048374522,0.002,96585.0,96577.0,0.0472]
[1739048374737,0.002,96585.0,96578.0,0.0815]
[1739048375153,0.153,96585.0,96578.0,0.0815]
[1739048375866,0.152,96585.0,96578.0,0.0815]
[1739048376128,0.15,96585.0,96578.0,0.0815]
[1739048376307,0.15122408,96585.0,96578.0,0.0815]
[1739048376516,0.15322408,96585.0,96578.0,0.0815]
[1739048376814,0.00322408,96585.0,96578.0,0.0815]
[1739048377180,0.00322408,96585.0,96581.0,0.0815]
[1739048377981,0.00122408,96585.0,96581.0,0.0815]
[1739048378483,0.00022408,96585.0,96581.0,0.0815]
[1739048379106,0.00222408,96585.0,96581.0,0.0815]
[1739048379321,0.00322408,96585.0,96581.0,0.0815]
[1739048379811,0.00122408,96585.0,96581.0,0.0815]
[1739048380024,0.00222408,96585.0,96581.0,0.0815]
[1739048380433,0.00122408,96585.0,96581.0,0.0815]
[1739048380805,0.00322408,96585.0,96581.0,0.0815]
[1739048381702,0.00222408,96585.0,96581.0,0.0815]
[1739048382015,0.00322408,96585.0,96581.0,0.0815]
[1739048382221,0.00122408,96585.0,96581.0,0.0815]
[1739048382373,0.00222408,96585.0,96581.0,0.0815]
[1739048383049,0.00122408,96585.0,96581.0,0.0815]
[1739048383850,0.00322408,96585.0,96581.0,0.0815]
[1739048384001,0.00222408,96585.0,96581.0,0.0815]
[1739048385232,0.00022408,96585.0,96581.0,0.0815]
[1739048385655,0.00222408,96585.0,96581.0,0.0815]
[1739048386097,0.00122408,96585.0,96581.0,0.0815]
[1739048386319,0.00322408,96585.0,96581.0,0.0815]
[1739048386676,0.00122408,96585.0,96581.0,0.0815]
[1739048388641,0.15222408,96585.0,96581.0,0.0815]
[1739048389168,0.15022408,96585.0,96581.0,0.0815]
[1739048390272,0.15222408,96585.0,96581.0,0.0815]
[1739048390500,0.15322408,96585.0,96581.0,0.0815]
[1739048390919,0.15852708,96585.0,96581.0,0.0815]
[1739048391986,0.00122408,96585.0,96581.0,0.0815]
[1739048392136,0.15,96583.0,96581.0,0.0815]
[1739048392544,0.305306,96583.0,96581.0,0.0815]
[1739048394558,0.306306,96583.0,96581.0,0.0815]
[1739048394768,0.155308,96582.0,96581.0,0.0815]
[1739048395578,0.151,96583.0,96581.0,0.0815]
[1739048395782,0.15,96583.0,96581.0,0.0815]
[1739048395936,0.305307,96583.0,96581.0,0.0815]
[1739048397735,0.306307,96583.0,96581.0,0.0815]
[1739048398463,0.155308,96582.0,96581.0,0.0815]
[1739048401040,0.00022408,96585.0,96581.0,0.0815]
[1739048401254,0.15022408,96585.0,96581.0,0.0815]
[1739048402194,0.00022408,96585.0,96581.0,0.0815]
[1739048402398,0.00222408,96585.0,96581.0,0.0815]
[1739048402605,0.00222408,96585.0,96584.0,0.155305]
[1739048402769,0.00222408,96585.0,96584.0,0.285905]
[1739048402947,0.00122408,96585.0,96584.0,0.38840865]
[1739048403180,0.00022408,96585.0,96584.0,0.38840865]
[1739048404245,0.00122408,96585.0,96584.0,0.38840865]
[1739048404613,0.00022408,96585.0,96584.0,0.38840865]
[1739048404947,0.00022408,96585.0,96584.0,0.39040865]
[1739048407423,0.00022408,96585.0,96584.0,0.39240865]
[1739048408900,0.00022408,96585.0,96584.0,0.72170865]
[1739048409122,0.00022408,96585.0,96584.0,0.8242123]
[1739048409558,0.00022408,96585.0,96584.0,0.83681615]
[1739048410202,0.00022408,96585.0,96584.0,0.83281615]
[1739048410412,0.00022408,96585.0,96584.0,0.71770865]
[1739048410617,0.00022408,96585.0,96584.0,0.72870865]
[1739048410817,0.07579312,96600.0,96590.0,0.155294]
[1739048411034,0.00045363,96600.0,96591.0,0.18550365]
[1739048411257,0.07624675,96600.0,96591.0,0.34079665]
[1739048411468,0.00045363,96600.0,96593.0,0.15529]
[1739048411678,0.00045363,96600.0,96595.0,0.083]
[1739048412121,0.00045363,96600.0,96595.0,0.155287]
[1739048412328,0.00045363,96600.0,96596.0,0.083]
[1739048413118,0.00045363,96600.0,96597.0,0.0484]
[1739048413331,0.00045363,96600.0,96599.0,0.1314]
[1739048413532,0.00045363,96600.0,96599.0,0.23390365]
[1739048414182,0.00045363,96600.0,96599.0,0.56320365]
[1739048414611,0.00045363,96600.0,96599.0,0.56520365]
[1739048414937,0.00045363,96600.0,96599.0,0.56820365]
[1739048415243,0.00045363,96600.0,96599.0,0.72348465]
[1739048415691,0.00045363,96600.0,96599.0,0.56820365]
[1739048415882,0.00045363,96600.0,96599.0,0.4657]
[1739048416307,0.00045363,96600.0,96599.0,0.4627]
[1739048416835,0.00045363,96600.0,96599.0,0.4607]
[1739048417011,0.00045363,96600.0,96599.0,0.4627]
[1739048417215,0.00045363,96600.0,96599.0,0.4637]
[1739048417456,0.00045363,96600.0,96599.0,0.4657]
[1739048417592,0.00045363,96600.0,96599.0,0.4775228]
[1739048417999,0.00045363,96600.0,96599.0,0.4805228]
[1739048418200,0.00045363,96600.0,96599.0,0.4785228]
[1739048418680,0.00045363,96600.0,96599.0,0.4805228]
[1739048419306,0.00045363,96600.0,96599.0,0.4775228]
[1739048419527,0.00045363,96600.0,96599.0,0.4805228]
[1739048420154,0.00045363,96600.0,96599.0,0.1482228]
[1739048420327,0.00045363,96600.0,96599.0,0.1512228]
[1739048420714,0.00045363,96600.0,96599.0,0.1482228]
[1739048420915,0.00045363,96600.0,96599.0,0.1462228]
[1739048421139,0.00045363,96600.0,96599.0,0.1492228]
[1739048421339,0.00045363,96600.0,96599.0,0.1512228]
[1739048422022,0.00045363,96600.0,96599.0,0.1492228]
[1739048422406,0.00045363,96600.0,96599.0,0.1482228]
[1739048422772,0.00045363,96600.0,96599.0,0.1512228]
[1739048423175,0.00045363,96600.0,96599.0,0.3035038]
[1739048423364,0.00045363,96600.0,96599.0,0.3065038]
[1739048423999,0.00045363,96600.0,96599.0,0.3015038]
[1739048424244,0.00045363,96600.0,96599.0,0.3045038]
[1739048424558,0.00045363,96600.0,96599.0,0.3065038]
[1739048424760,0.00045363,96600.0,96599.0,0.1492228]
[1739048424906,0.00045363,96600.0,96599.0,0.15144687]
[1739048425627,0.00045363,96600.0,96599.0,0.15344687]
[1739048426055,0.00045363,96600.0,96599.0,0.15044687]
[1739048426252,0.00045363,96600.0,96599.0,0.30872787]
[1739048426741,0.00045363,96600.0,96599.0,0.30572787]
[1739048427182,0.00045363,96600.0,96599.0,0.30872787]
[1739048427388,0.00045363,96600.0,96599.0,0.30472787]
[1739048427628,0.00045363,96600.0,96599.0,0.30172787]
[1739048427831,0.00045363,96600.0,96599.0,0.14844687]
[1739048428032,0.00045363,96600.0,96599.0,0.15144687]
[1739048428608,0.00045363,96600.0,96599.0,0.15344687]
[1739048428849,0.00045363,96600.0,96599.0,0.15144687]
[1739048429066,0.00045363,96600.0,96599.0,0.15344687]
[1739048430256,0.00045363,96600.0,96599.0,0.15044687]
[1739048431732,0.00045363,96600.0,96599.0,0.15344687]
[1739048433015,0.00045363,96600.0,96599.0,0.15044687]
[1739048433218,0.00045363,96600.0,96599.0,0.15144687]
[1739048433425,0.00045363,96600.0,96599.0,0.14944687]
[1739048433648,0.00045363,96600.0,96599.0,0.14844687]
[1739048433944,0.00045363,96600.0,96599.0,0.15144687]
[1739048434409,0.00045363,96600.0,96599.0,0.14944687]
[1739048434633,0.00045363,96600.0,96599.0,0.14644687]
[1739048434978,0.00045363,96600.0,96599.0,0.14944687]
[1739048435220,0.00045363,96600.0,96599.0,0.15144687]
[1739048436021,0.00045363,96600.0,96599.0,0.30672787]
[1739048436297,0.00045363,96600.0,96599.0,0.35510526]
[1739048436472,0.00045363,96600.0,96599.0,0.35810526]
[1739048436671,0.00045363,96600.0,96599.0,0.35610526]
[1739048436854,0.00045363,96600.0,96599.0,0.35510526]
[1739048437365,0.00045363,96600.0,96599.0,0.20282426]
[1739048437542,0.00045363,96600.0,96599.0,0.15144687]
[1739048437735,0.00045363,96600.0,96599.0,0.14844687]
[1739048438254,0.00045363,96600.0,96599.0,0.15144687]
[1739048458545,0.00045363,96600.0,96599.0,0.40923152]
[1739048470312,0.00045363,96600.0,96599.0,0.73853152]
[1739048470526,0.00045363,96600.0,96599.0,0.84103517]
[1739048470926,0.00045363,96600.0,96599.0,0.83803517]
[1739048471120,0.00045363,96600.0,96599.0,0.84403517]
[1739048471396,0.00045363,96600.0,96599.0,0.74153152]
[1739048471777,0.00045363,96600.0,96599.0,0.73553152]
[1739048472486,0.00045363,96600.0,96599.0,0.74153152]
[1739048473145,0.0001067,96607.0,96606.0,0.155269]
[1739048473348,0.00019591,96607.0,96606.0,0.5155111]
[1739048473531,0.00019591,96607.0,96606.0,0.55920734]
[1739048474091,0.00019591,96607.0,96606.0,0.52696663]
[1739048474348,0.00022408,96627.0,96626.0,0.276437]
[1739048474549,0.00031325,96627.0,96626.0,0.70824065]
[1739048474764,0.00031325,96627.0,96626.0,0.8107443]
[1739048475847,0.00031325,96627.0,96626.0,0.71624065]
[1739048476827,0.00031325,96627.0,96626.0,0.70824065]
[1739048477181,0.00031325,96627.0,96626.0,0.7265898]
[1739048477533,0.00031325,96627.0,96626.0,0.7325898]
[1739048477735,0.00031325,96627.0,96626.0,0.7255898]
[1739048477949,0.00031325,96627.0,96626.0,0.82909345]
[1739048478769,0.00031325,96627.0,96626.0,0.7265898]
[1739048479151,0.00031325,96627.0,96626.0,0.7325898]
[1739048479727,0.00031325,96627.0,96626.0,0.7385898]
[1739048480136,0.00031325,96627.0,96626.0,0.7315898]
[1739048480369,0.00031325,96627.0,96626.0,0.7395898]
[1739048480594,0.00031325,96627.0,96626.0,0.7275898]
[1739048480800,0.00031325,96627.0,96626.0,0.82209345]
[1739048480979,0.00031325,96627.0,96626.0,0.82809345]
[1739048481158,0.00031325,96627.0,96626.0,0.83609345]
[1739048481538,0.00031325,96627.0,96626.0,0.82809345]
[1739048482065,0.00031325,96627.0,96626.0,0.83009345]
[1739048482389,0.00031325,96627.0,96626.0,0.83609345]
[1739048483962,0.00031325,96627.0,96626.0,0.82809345]
[1739048484358,0.00031325,96627.0,96626.0,0.83609345]
[1739048485277,0.00031325,96627.0,96626.0,0.83009345]
[1739048485492,0.00031325,96627.0,96626.0,0.83609345]
[1739048486767,0.00031325,96627.0,96626.0,0.7335898]
[1739048490970,0.00031325,96627.0,96626.0,0.35464915]
[1739048491187,0.00031325,96627.0,96626.0,0.02534915]
[1739048491391,0.01482052,96627.0,96626.0,0.02534915]
[1739048491819,0.00031325,96627.0,96626.0,0.02534915]
[1739048492028,0.00031325,96627.0,96626.0,0.014]
[1739048492236,0.00031325,96627.0,96626.0,0.02648407]
[1739048492536,0.00031325,96627.0,96626.0,0.008]
[1739048492720,0.00031325,96627.0,96626.0,0.009]
[1739048493721,0.00031325,96627.0,96619.0,0.155248]
[1739048493875,0.00031325,96627.0,96626.0,0.001]
[1739048494594,0.00031325,96627.0,96626.0,0.01248407]
[1739048494781,0.00031325,96627.0,96626.0,0.002]
[1739048494979,0.00031325,96627.0,96626.0,0.01448407]
[1739048495187,0.00031325,96627.0,96626.0,0.002]
[1739048495602,0.00031325,96627.0,96626.0,0.01448407]
[1739048499451,0.01522504,96627.0,96626.0,0.01448407]
[1739048499653,0.00031325,96627.0,96626.0,0.01448407]
[1739048501252,0.00031325,96627.0,96626.0,0.002]
[1739048501883,0.00031325,96627.0,96626.0,0.01448407]
[1739048502035,0.00031325,96627.0,96626.0,0.002]
[1739048502692,0.30554925,96627.0,96626.0,0.002]
[1739048502937,0.33641901,96627.0,96626.0,0.002]
[1739048503781,0.33581901,96627.0,96626.0,0.002]
[1739048503915,0.33581901,96627.0,96626.0,0.001]
[1739048504114,0.33581901,96627.0,96605.0,0.047]
[1739048504115,0.15,96626.0,96605.0,0.047]
[1739048504324,0.18058301,96627.0,96605.0,0.047]
[1739048504325,0.155254,96616.0,96605.0,0.047]
[1739048504549,0.155254,96616.0,96608.0,0.01250178]
[1739048505374,0.155254,96616.0,96605.0,0.047]
[1739048505582,0.155256,96615.0,96605.0,0.047]
[1739048505987,0.155256,96615.0,96607.0,0.00122407]
[1739048506191,0.07208392,96614.0,96608.0,0.01250178]
[1739048506396,0.155255,96616.0,96608.0,0.01250178]
[1739048506595,0.155255,96615.0,96607.0,0.00022407]
[1739048506802,0.155255,96615.0,96609.0,0.0125008]
[1739048506997,0.155255,96615.0,96608.0,0.01250178]
[1739048507196,0.155255,96615.0,96610.0,0.01249981]
[1739048507529,0.155255,96615.0,96611.0,0.01249883]
[1739048507929,0.207003,96617.0,96607.0,0.00022407]
[1739048508439,0.155255,96615.0,96608.0,0.01250178]
[1739048509836,0.22579312,96620.0,96608.0,0.01250178]
[1739048510060,0.305252,96618.0,96608.0,0.01250178]
[1739048510436,0.15,96618.0,96608.0,0.16776778]
[1739048510682,0.15,96618.0,96608.0,0.01250178]
[1739048511618,0.24066158,96620.0,96608.0,0.01250178]
[1739048511849,0.15525,96618.0,96608.0,0.01250178]
[1739048513217,0.23104512,96618.0,96608.0,0.01250178]
[1739048514212,0.07579312,96618.0,96609.0,0.0811]
[1739048514591,0.07579312,96618.0,96610.0,0.01249981]
[1739048517634,0.0760172,96618.0,96610.0,0.01249981]
[1739048521458,0.2312672,96618.0,96610.0,0.01249981]
[1739048523387,0.0760172,96618.0,96610.0,0.01249981]
[1739048524279,0.00022408,96618.0,96610.0,0.01249981]
[1739048526961,0.00022408,96618.0,96611.0,0.0752]
[1739048527569,0.00022408,96618.0,96612.0,0.01249784]
[1739048530404,0.00022408,96618.0,96614.0,0.0492]
[1739048530585,0.00022408,96618.0,96615.0,0.0752]
[1739048530790,0.00022408,96618.0,96615.0,0.08769489]
[1739048537520,0.00022408,96618.0,96616.0,0.10250365]
[1739048537727,0.00022408,96618.0,96617.0,0.29341188]
[1739048537944,0.00022408,96618.0,96617.0,0.39591553]
[1739048539765,0.00022408,96618.0,96617.0,0.39691553]
[1739048541239,0.00022408,96618.0,96617.0,0.39791553]
[1739048541833,0.00022408,96618.0,96617.0,0.72721553]
[1739048544304,0.00022408,96618.0,96617.0,0.82971918]
[1739048545591,0.00022408,96618.0,96617.0,0.72721553]
[1739048548832,0.00022408,96618.0,96617.0,0.72621553]
[1739048549041,0.00022408,96618.0,96617.0,0.74821553]
[1739048549244,0.00022408,96618.0,96617.0,0.75521553]
[1739048549418,0.00022408,96618.0,96617.0,0.76121553]
[1739048549858,0.00022408,96618.0,96617.0,0.86371918]
[1739048550187,0.00022408,96618.0,96617.0,0.85771918]
[1739048550513,0.00022408,96618.0,96617.0,0.86571918]
[1739048550765,0.00022408,96618.0,96617.0,0.85871918]
[1739048550937,0.00022408,96618.0,96617.0,0.87994474]
[1739048551159,0.00022408,96618.0,96617.0,0.88894474]
[1739048551584,0.00022408,96618.0,96617.0,0.87994474]
[1739048551791,0.00022408,96618.0,96617.0,0.87194474]
[1739048551994,0.00022408,96618.0,96617.0,0.88094474]
[1739048552218,0.00022408,96618.0,96617.0,0.88894474]
[1739048552901,0.00022408,96618.0,96617.0,0.88794474]
[1739048553070,0.00022408,96618.0,96617.0,0.87194474]
[1739048553412,0.00022408,96618.0,96617.0,0.88094474]
[1739048553867,0.00022408,96618.0,96617.0,1.41814474]
[1739048555029,0.00022408,96618.0,96617.0,1.42714474]
[1739048555492,0.00022408,96618.0,96617.0,1.41814474]
[1739048556501,0.00022408,96618.0,96617.0,1.42714474]
[1739048557479,0.00022408,96618.0,96617.0,1.47815974]
[1739048565675,0.00022408,96618.0,96617.0,1.33143053]
[1739048566677,0.00022408,96618.0,96617.0,1.32243053]
[1739048566887,0.00022408,96618.0,96617.0,1.31343053]
[1739048567304,0.00022408,96618.0,96617.0,1.32243053]
[1739048567515,0.00022408,96618.0,96617.0,1.3226546]
[1739048567753,0.00022408,96618.0,96617.0,1.41615825]
[1739048567926,0.00022408,96618.0,96617.0,1.42515825]
[1739048568126,0.00022408,96618.0,96617.0,1.43415825]
[1739048570425,0.00022408,96618.0,96617.0,1.3316546]
[1739048571459,0.00022408,96618.0,96617.0,0.7944546]
[1739048583626,0.00022408,96618.0,96617.0,0.7854546]
[1739048583805,0.00022408,96618.0,96617.0,0.7764546]
[1739048584007,0.00022408,96618.0,96617.0,0.7854546]
[1739048584657,0.00022408,96618.0,96617.0,0.7944546]
[1739048587099,0.00022408,96618.0,96617.0,0.89695825]
[1739048588335,0.00022408,96618.0,96617.0,0.7944546]
[1739048597194,0.01964099,96618.0,96617.0,0.7944546]
[1739048599246,0.00022408,96618.0,96617.0,0.7944546]
[1739048602146,0.00022408,96618.0,96617.0,0.08299895]
[1739048602391,0.00022408,96618.0,96617.0,0.23825095]
[1739048602843,0.0196425,96618.0,96617.0,0.23825095]
[1739048603316,0.0196425,96618.0,96617.0,0.3317546]
[1739048603520,0.0196425,96618.0,96617.0,0.47411457]
[1739048603747,0.0196425,96618.0,96617.0,0.48111457]
[1739048603986,0.0196425,96618.0,96617.0,0.47311457]
[1739048604236,0.00022408,96618.0,96617.0,0.47311457]
[1739048604480,0.00022408,96618.0,96617.0,0.48111457]
[1739048604942,0.00022408,96618.0,96617.0,0.47411457]
[1739048605360,0.00022408,96618.0,96617.0,0.48111457]
[1739048605792,0.00022408,96618.0,96617.0,0.4158546]
[1739048607112,0.00022408,96618.0,96617.0,0.7451546]
[1739048608605,0.00022408,96618.0,96617.0,0.8180546]
[1739048608817,0.00022408,96618.0,96617.0,1.3552546]
[1739048609485,0.00022408,96618.0,96617.0,1.3472546]
[1739048609724,0.00022408,96618.0,96617.0,1.44275825]
[1739048609936,0.00022408,96618.0,96617.0,1.46775825]
[1739048610140,0.0001067,96620.0,96617.0,1.46775825]
[1739048610141,0.0001067,96620.0,96619.0,0.165248]
[1739048610322,0.0001067,96620.0,96619.0,0.41978623]
[1739048610471,0.0001067,96620.0,96619.0,0.55349787]
[1739048610679,0.0001067,96620.0,96619.0,0.56717223]
[1739048612034,0.0001067,96620.0,96619.0,0.57617223]
[1739048612228,0.0001067,96620.0,96619.0,0.56717223]
[1739048612574,0.0001067,96620.0,96619.0,0.57617223]
[1739048612948,0.0001067,96620.0,96619.0,0.58517223]
[1739048613159,0.0001067,96620.0,96619.0,1.45167223]
[1739048616657,7e-07,96620.0,96619.0,1.61167223]
[1739048616868,0.00031325,96627.0,96626.0,0.443637]
[1739048617093,0.00031325,96627.0,96626.0,0.70388687]
[1739048617413,0.00031325,96627.0,96626.0,0.71755358]
[1739048618398,0.00031325,96627.0,96626.0,0.72655358]
[1739048618595,0.00031325,96627.0,96626.0,0.71755358]
[1739048618919,0.00031325,96627.0,96626.0,0.73655358]
[1739048619096,0.00031325,96627.0,96626.0,0.72655358]
[1739048619347,0.00031325,96627.0,96626.0,0.74555358]
[1739048619718,0.00031325,96627.0,96626.0,0.72755358]
[1739048620087,0.00031325,96627.0,96626.0,0.73555358]
[1739048620310,0.00031325,96627.0,96626.0,0.74555358]
[1739048622047,0.00031325,96627.0,96626.0,1.61205358]
[1739048623658,0.00031325,96627.0,96626.0,1.57981101]
[1739048623832,0.00031325,96627.0,96626.0,1.6290253]
[1739048624053,0.00031325,96627.0,96626.0,1.58693137]
[1739048625219,0.00031325,96627.0,96626.0,1.57793137]
[1739048625562,0.00031325,96627.0,96626.0,1.58693137]
[1739048625964,0.07579312,96670.0,96658.0,0.155185]
[1739048625965,0.01474664,96667.0,96658.0,0.155185]
[1739048626255,0.01474664,96667.0,96659.0,0.25768765]
[1739048626256,0.0148405,96667.0,96659.0,0.25768765]
[1739048626436,9.386e-05,96667.0,96659.0,0.27137386]
[1739048626796,0.01668746,96667.0,96659.0,0.27137386]
[1739048626998,9.386e-05,96667.0,96659.0,0.27137386]
[1739048627554,9.386e-05,96667.0,96659.0,0.11618986]
[1739048627732,9.386e-05,96667.0,96660.0,0.155182]
[1739048628077,9.386e-05,96667.0,96661.0,0.01368402]
[1739048629317,0.01694534,96667.0,96662.0,0.18768827]
[1739048629509,9.386e-05,96667.0,96662.0,0.18768827]
[1739048629710,9.386e-05,96667.0,96663.0,0.01368184]
[1739048630221,9.386e-05,96667.0,96661.0,0.001]
[1739048630368,9.386e-05,96667.0,96664.0,0.01368074]
[1739048630591,9.386e-05,96667.0,96662.0,0.001]
[1739048630748,9.386e-05,96667.0,96665.0,0.01367965]
[1739048630952,9.386e-05,96667.0,96662.0,0.001]
[1739048631373,9.386e-05,96667.0,96662.0,0.002]
[1739048631800,9.386e-05,96667.0,96663.0,0.01368184]
[1739048632592,9.386e-05,96667.0,96663.0,0.01468184]
[1739048632796,9.386e-05,96667.0,96663.0,0.01568184]
[1739048633241,9.386e-05,96667.0,96663.0,0.17085984]
[1739048633645,9.386e-05,96667.0,96663.0,0.22258584]
[1739048633851,9.386e-05,96667.0,96666.0,0.155173]
[1739048634059,9.386e-05,96667.0,96664.0,0.16885574]
[1739048635664,9.386e-05,96667.0,96664.0,0.17085574]
[1739048636045,9.386e-05,96667.0,96664.0,0.01568074]
[1739048637270,9.386e-05,96667.0,96664.0,0.17085574]
[1739048637555,9.386e-05,96667.0,96664.0,0.17428693]
[1739048637930,9.386e-05,96667.0,96664.0,0.22601293]
[1739048638216,9.386e-05,96667.0,96664.0,0.01911193]
[1739048638356,0.00020056,96667.0,96664.0,0.01911193]
[1739048642618,0.00020056,96667.0,96666.0,0.155173]
[1739048642821,0.00020056,96667.0,96666.0,0.58697665]
[1739048643060,0.00020056,96667.0,96666.0,0.60408718]
[1739048644637,0.01710871,96697.0,96682.0,0.155146]
[1739048644854,0.01756189,96697.0,96682.0,0.155146]
[1739048644974,0.00045318,96697.0,96683.0,0.01708666]
[1739048645180,0.00045318,96697.0,96684.0,0.10250365]
[1739048645589,0.00045318,96697.0,96685.0,0.17222585]
[1739048645796,0.00045318,96697.0,96686.0,0.10250365]
[1739048646044,0.00045318,96697.0,96686.0,0.25764365]
[1739048646302,0.00045318,96697.0,96686.0,0.10250365]
[1739048646670,0.00045318,96697.0,96687.0,0.01711462]
[1739048646926,0.00045318,96697.0,96688.0,0.10250365]
[1739048647131,0.00045318,96697.0,96689.0,0.01711181]
[1739048648865,0.00045318,96697.0,96690.0,0.155134]
[1739048649051,0.00045318,96697.0,96689.0,0.01711181]
[1739048650848,0.00045318,96697.0,96692.0,0.155131]
[1739048651047,0.00045318,96697.0,96694.0,0.155127]
[1739048651393,0.00045318,96697.0,96693.0,0.01719577]
[1739048651548,0.00045318,96697.0,96688.0,0.30935265]
[1739048651549,0.00045318,96697.0,96688.0,0.25764165]
[1739048651752,0.00055988,96697.0,96688.0,0.10250365]
[1739048652277,0.00055988,96697.0,96688.0,0.25764065]
[1739048652696,0.00055988,96697.0,96684.0,0.206857]
[1739048653038,0.07579312,96694.0,96688.0,0.001]
[1739048653141,0.00055988,96697.0,96688.0,0.001]
[1739048653573,0.00055988,96697.0,96688.0,0.002]
[1739048653574,0.05367207,96697.0,96688.0,0.002]
[1739048653778,0.155136,96689.0,96688.0,0.002]
[1739048654031,0.155135,96690.0,96688.0,0.001]
[1739048654889,0.155135,96690.0,96675.0,0.155158]
[1739048655225,0.07579312,96685.0,96676.0,0.01600361]
[1739048656430,0.07579312,96685.0,96676.0,0.005]
[1739048656834,0.07579312,96685.0,96677.0,0.01600221]
[1739048657268,0.22579312,96690.0,96677.0,0.01600221]
[1739048657469,0.38092912,96690.0,96677.0,0.01600221]
[1739048658318,0.39726224,96690.0,96677.0,0.02200221]
[1739048658586,0.39726224,96690.0,96677.0,0.01600221]
[1739048658789,0.39726224,96690.0,96677.0,0.02100221]
[1739048658989,0.155136,96689.0,96677.0,0.009]
[1739048659282,0.155136,96689.0,96678.0,0.0160008]
[1739048659415,0.155136,96689.0,96677.0,0.012]
[1739048660014,0.155136,96689.0,96677.0,0.007]
[1739048660242,0.155136,96689.0,96674.0,0.155159]
[1739048660442,0.09212624,96690.0,96678.0,0.0200008]
[1739048660443,0.07579312,96684.0,96678.0,0.0200008]
[1739048660637,0.07579312,96684.0,96678.0,0.004]
[1739048661950,0.155138,96688.0,96674.0,0.155159]
[1739048662132,0.07579312,96684.0,96677.0,0.004]
[1739048662354,0.155138,96688.0,96674.0,0.155159]
[1739048662549,0.07579312,96684.0,96674.0,0.155159]
[1739048662756,0.155138,96688.0,96678.0,0.0220008]
[1739048662954,0.07579312,96684.0,96678.0,0.006]
[1739048663164,0.07579312,96684.0,96679.0,0.0159994]
[1739048663843,0.23093012,96689.0,96679.0,0.0159994]
[1739048664043,0.155139,96688.0,96678.0,0.005]
[1739048664472,0.155139,96688.0,96677.0,0.006]
[1739048664832,0.155139,96688.0,96679.0,0.007]
[1739048665733,0.07579312,96689.0,96679.0,0.007]
[1739048665734,0.15514,96687.0,96679.0,0.007]
[1739048665949,0.15514,96687.0,96679.0,0.011]
[1739048666162,0.15514,96687.0,96680.0,0.01599799]
[1739048666360,0.155143,96685.0,96679.0,0.004]
[1739048666565,0.155143,96685.0,96680.0,0.01599799]
[1739048666950,0.155143,96685.0,96675.0,0.155159]
[1739048667187,0.155143,96685.0,96680.0,0.005]
[1739048667365,0.07579312,96689.0,96681.0,0.0805]
[1739048667571,0.07579312,96689.0,96682.0,0.01599519]
[1739048667792,0.23093012,96689.0,96682.0,0.01599519]
[1739048668171,0.155138,96688.0,96682.0,0.01599519]
[1739048669277,0.155138,96688.0,96682.0,0.01999519]
[1739048669497,0.155138,96688.0,96682.0,0.02399519]
[1739048670119,0.155138,96688.0,96682.0,0.01999519]
[1739048670357,0.155138,96688.0,96682.0,0.02499519]
[1739048672102,0.07579312,96689.0,96682.0,0.02499519]
[1739048672414,0.23093012,96689.0,96682.0,0.02499519]
[1739048673068,0.23093012,96689.0,96682.0,0.01599519]
[1739048673403,0.07579312,96689.0,96683.0,0.0481]
[1739048673784,0.07579312,96689.0,96683.0,0.06409378]
[1739048675029,0.16637828,96691.0,96683.0,0.06409378]
[1739048675379,0.16637828,96691.0,96683.0,0.06809378]
[1739048675579,0.16637828,96691.0,96683.0,0.07209378]
[1739048675988,0.16637828,96691.0,96683.0,0.06809378]
[1739048676213,0.16637828,96691.0,96683.0,0.07409378]
[1739048677434,0.01637828,96691.0,96683.0,0.07409378]
[1739048677644,0.17151128,96691.0,96683.0,0.07409378]
[1739048677856,0.155133,96691.0,96683.0,0.07409378]
[1739048679175,0.15,96691.0,96683.0,0.07409378]
[1739048680089,0.305134,96691.0,96683.0,0.07409378]